Cogmind - Beta 15 X1 @@@ ROGUE MODE // 2024.11.14 @ 02:04:14 Player: H3-RMN Result: Destroyed by G-50 Soldier with Heavy Laser Performance ------------- Evolutions (4) 2000 Regions Visited (6) 1200 Robots Destroyed (32) 160 Value Destroyed (1141) 1141 Prototype IDs (4) 80 Alien Tech Used (0) 0 Bonus (411) 411 TOTAL SCORE: 4992 Bonus ------- Follower Combat Kills 111 Registered with UFD 300 Cogmind --------- Core Integrity 0/850 Matter 250/300 Energy 89/100 System Corruption 10% Temperature Cool (9) Movement Rolling (100) Location -6/Factory Parts ------- > --- POWER (2) -------- (None) > --- PROPULSION (3) --- Armored Huge Wheel > --- UTILITY (8) ------ Improved Medium Armor Plating > --- WEAPON (2) ------- Chainsword > --- INVENTORY (5) ---- Heavy Armored Exoskeleton Botcube Peak State ------------ > --- POWER ------------ Enhanced Nuclear Core Enhanced Nuclear Core > --- PROPULSION ------- Overtuned Treads Armored Huge Wheel > --- UTILITY ---------- Scrap Suit Improved Heat Sink Advanced Heat Sink Humpback Advanced Targeting Computer High-powered Tractor Beam > --- WEAPON ----------- Light Cannon Light Cannon > --- INVENTORY -------- Light Nuclear Core Light Treads Armored Treads Advanced Treads Overtuned Titanium Leg Wheel Armored Wheel Armored Wheel Armored Huge Wheel Armored Huge Wheel Scrap Suit Large Storage Unit Energy Well Matter Compressor Cloaking Device High-powered Tractor Beam Thermic Laser Autogun Autogun Minigun Barrage Gun Light Cannon Battle Cannon Flak Cannon Flak Cannon Datajack CPS Tube CPS Tube CPS Tube Katana DRS Beacon Botcube [Rating: 58] Favorites ----------- Power Light Ion Engine Engine Light Ion Engine Power Core Nuclear Core Propulsion Light Treads Treads Light Treads Wheel Armored Wheel Utility Humpback Device Scrap Suit Storage Humpback Processor Advanced Targeting Computer Protection Improved Medium Armor Plating Weapon Light Cannon Energy Gun EM Pulse Gun Energy Cannon Heavy Particle Cannon Ballistic Cannon Light Cannon Special Weapon CPS Tube Slashing Weapon Chainsword Special Melee Weapon Datajack Build | -11 -10 -10 -8 -6 -6 -6 ------- Run | Yrd Mat Sub Scr Fac Was Fac Slots Evolved 8 | . . . . 8 . . Power 1 | . . . . 1 . . Propulsion 1 | . . . . 1 . . Utility 6 | . . . . 6 . . Weapon . | . . . . . . . Parts Attached 42 | 7 4 3 5 18 3 2 Power 6 | 1 . 1 1 3 . . Engine 2 | 1 . 1 . . . . Core 4 | . . . 1 3 . . Reactor . | . . . . . . . Propulsion 9 | 2 1 1 2 2 1 . Treads 3 | . 1 1 . 1 . . Leg . | . . . . . . . Wheel 6 | 2 . . 2 1 1 . Hover . | . . . . . . . Flight . | . . . . . . . Utility 15 | 2 1 1 1 9 . 1 Device 8 | 1 . 1 . 6 . . Storage 3 | 1 1 . 1 . . . Processor 2 | . . . . 2 . . Hackware . | . . . . . . . Protection 2 | . . . . 1 . 1 Artifact . | . . . . . . . Weapon 12 | 2 2 . 1 4 2 1 Energy Gun 2 | 2 . . . . . . Energy Cannon 1 | . . . . 1 . . Ballistic Gun . | . . . . . . . Ballistic Cannon 5 | . 2 . . 3 . . Launcher . | . . . . . . . Special Weapon 1 | . . . . . 1 . Impact Weapon . | . . . . . . . Slashing Weapon 2 | . . . . . 1 1 Piercing Weapon . | . . . . . . . Special Melee Weapon 1 | . . . 1 . . . Unidentified Prototypes 1 | . . . . 1 . . Parts Lost 31 | . . 4 . 16 11 . Power 4 | . . 1 . 1 2 . Propulsion 5 | . . 1 . 3 1 . Utility 11 | . . 1 . 6 4 . Weapon 10 | . . 1 . 5 4 . Highest Loss Streak 11 | . . 4 . 6 11 . To Critical Strikes 3 | . . . . 1 2 . Average Backups 14 | 2 6 8 12 25 14 1 Power . | . 1 . . . . . Propulsion 2 | 1 1 . 1 7 4 1 Utility 2 | . . . 2 4 2 . Weapon 7 | . 3 5 6 9 5 . Tool/Special . | . . . . . . . Unused Backups 26 | . 1 . 3 2 19 1 Power 1 | . . . . . 1 . Propulsion 6 | . . . . 1 4 1 Utility 8 | . . . 3 . 5 . Weapon 10 | . 1 . . 1 8 . Tool/Special 1 | . . . . . 1 . Average Slot Usage (%) 80 | . 100 94 83 74 33 10 Engine 7 | . 14 13 10 . . . Core 5 | . . . 3 12 4 . Treads 16 | . 7 16 21 5 2 . Wheel 7 | . 20 10 6 6 5 6 Device 8 | . 14 13 4 16 11 . Storage 11 | . 14 14 14 5 3 . Processor 1 | . . . . 6 . . Ballistic Cannon 13 | . 19 24 14 10 4 . Special Melee Weapon 5 | . . . 8 . . . Peak Build Rating 58 | 7 7 8 20 58 54 20 Average Rating 20 | 4 6 7 10 49 27 14 On Entrance 15 | . 7 7 8 20 51 12 Naked Turns 7 | . . . . . 7 . Heaviest Build 235 | 12 30 30 211 235 229 10 Greatest Support 40 | 20 20 40 40 28 28 28 Greatest Overweight (x) 17 | . 2 9 17 9 8 . Average Overweight (x) 3 | . . 1 2 8 . . Largest Inventory Capacity 35 | 8 15 15 35 35 35 5 Average Capacity 25 | 6 11 15 24 34 21 5 Most Carried 35 | 4 8 10 30 35 32 5 Average Carried 17 | 2 6 7 13 29 18 5 Final Capacity 35 | 8 15 15 35 35 5 5 Final Carried 30 | 4 7 8 30 28 5 5 Class Distribution -------------------- 54% | Hauler-Mutant 44% | Mutant Dominant Class ---------------- Mutant | -10/Materials Mutant | -10/Subcaves Mutant | -8/Scraptown Hauler-Mutant | -6/Factory Mutant | -6/Waste Commander-Mutant | -6/Factory Resources | -11 -10 -10 -8 -6 -6 -6 ----------- Run | Yrd Mat Sub Scr Fac Was Fac Matter Collected 1365 | 253 145 . 74 828 65 . Remotely 703 | . . . . 676 27 . Salvage Created 1073 | 21 126 70 . 856 . . Parts 56 | 5 7 5 . 39 . . Haulers Intercepted 1 | . . . . 1 . . Recyclers Shooed 1 | . . . . 1 . . Parts Field Recycled . | . . . . . . . Retrieved Matter . | . . . . . . . Parts Self-Destructed 13 | . . 13 . . . . Prevented . | . . . . . . . Kills | -11 -10 -10 -8 -6 -6 -6 ------- Run | Yrd Mat Sub Scr Fac Was Fac Combat Hostiles Destroyed 25 | . 5 3 . 17 . . Guns 1 | . . . . 1 . . Cannons 21 | . 5 3 . 13 . . AOE 3 | . . . . 3 . . Classes Destroyed 8 | 1 2 1 . 4 . . Worker 3 | . . . . 3 . . Tunneler 1 | 1 . . . . . . Hauler 1 | . . . . 1 . . Recycler 2 | . . . . 2 . . Swarmer 8 | . 2 2 . 4 . . Grunt 12 | . 3 . . 9 . . Sentry 2 | . . 1 . 1 . . Programmer 3 | . . . . 3 . . Best Kill Streak 5 | 1 3 3 . 5 . . Combat Bots Only 4 | . 3 3 . 4 . . Max Kills in Single Turn 2 | 1 1 1 . 2 . . Gunslinging . | . . . . . . . Exploded 2 | . . . . 2 . . Melee . | . . . . . . . Uniques/NPCs Destroyed . | . . . . . . . Combat | -11 -10 -10 -8 -6 -6 -6 -------- Run | Yrd Mat Sub Scr Fac Was Fac Hostile Shots Fired 284 | . 28 4 . 213 20 19 Missed 70 | . 5 1 . 59 1 4 Damage Taken 4470 | . 286 285 . 2804 879 216 Core 963 | . 47 51 . 349 466 50 Absorbed by Shields . | . . . . . . . Regen/Repaired (Parts) 542 | . . . 83 459 . . Core Remaining (%) 80 | 100 . . 60 . . . Volleys Fired 111 | 1 11 3 . 84 12 . Largest 2 | 2 2 2 . 2 2 . Hottest 115 | 80 60 60 . 115 60 . Shots Fired 214 | 2 22 6 . 167 17 . Gun 19 | 2 . . . 17 . . Cannon 195 | . 22 6 . 150 17 . Launcher . | . . . . . . . Special . | . . . . . . . Kinetic 179 | . 22 6 . 134 17 . Thermal 17 | 1 . . . 16 . . Explosive . | . . . . . . . Electromagnetic 18 | 1 . . . 17 . . Robot Hit Streak 12 | 1 4 3 . 12 8 . Robot Miss Streak 6 | . 3 1 . 6 2 . Penetration Max . | . . . . . . . Secondary Targets . | . . . . . . . Shots Hit Robots 122 | 1 12 3 1 90 15 . Core Hits 60 | 1 5 3 . 51 . . Critical Kills . | . . . . . . . Critical Parts Destroyed . | . . . . . . . Critical Strikes 9 | . 1 2 . 6 . . Blast 9 | . 1 2 . 6 . . Melee Attacks 5 | . . . 1 . 4 . Impact . | . . . . . . . Slashing 4 | . . . . . 4 . Piercing . | . . . . . . . Sneak Attacks 1 | . . . 1 . . . Combat Hostiles . | . . . . . . . Follow-up Attacks . | . . . . . . . Damage Inflicted 3061 | 15 228 49 . 2475 294 . Guns 135 | 15 . . . 120 . . Cannons 2216 | . 228 49 . 1689 250 . Explosions 666 | . . . . 666 . . Melee 44 | . . . . . 44 . Ramming . | . . . . . . . Kinetic 2091 | . 228 49 . 1564 250 . Thermal 474 | . . . . 474 . . Explosive 317 | . . . . 317 . . Electromagnetic 135 | 15 . . . 120 . . Impact . | . . . . . . . Slashing 44 | . . . . . 44 . Piercing . | . . . . . . . Highest Corruption 10 | . . . . 1 10 10 Average Corruption 5 | . . . . 1 8 10 Corruption Purged . | . . . . . . . Corruption Blocked . | . . . . . . . Effects 8 | . . . . 3 4 1 Message Errors 3 | . . . . 1 2 . Matter Fused 2 | . . . . 2 . . Heat Flow Errors 1 | . . . . . . 1 Parts Rejected 1 | . . . . . 1 . Weapon Failures 1 | . . . . . 1 . Overload Shots . | . . . . . . . Overflow Damage 107 | . . . . 107 . . Projectiles 5 | . . . . 5 . . Explosions 102 | . . . . 102 . . Melee . | . . . . . . . Knockbacks 22 | . 3 . . 19 . . Impact . | . . . . . . . Kinetic 21 | . 3 . . 18 . . Secondary 1 | . . . . 1 . . Self-Inflicted Damage 217 | . . . . 217 . . Shots 3 | . . . . 3 . . Rammed . | . . . . . . . Targets Rammed . | . . . . . . . Kicked . | . . . . . . . Crushed . | . . . . . . . Highest Temperature 253 | 18 132 . . 253 . 185 Average Temperature 88 | 12 66 . . 107 . 90 Received Heat Transfer 1068 | . 144 9 . 810 . 105 Siege Activations . | . . . . . . . Martial Activations . | . . . . . . . Shielding Activations . | . . . . . . . Robots Disrupted . | . . . . . . . Combat Hostiles . | . . . . . . . Robots Corrupted . | . . . . . . . Combat Hostiles . | . . . . . . . Parts Fried . | . . . . . . . Impact Corruptions . | . . . . . . . Robots Melted . | . . . . . . . Combat Hostiles . | . . . . . . . Parts Melted . | . . . . . . . Heat Transferred 435 | . . . . 435 . . Parts Sabotaged . | . . . . . . . Parts Stolen . | . . . . . . . Parts Stripped . | . . . . . . . Power Chain Reactions 1 | . . . . 1 . . Alert | -11 -10 -10 -8 -6 -6 -6 ------- Run | Yrd Mat Sub Scr Fac Was Fac Maximum Alert Level . | . . . . . . . Low Security (%) 100 | 100 100 . . 100 100 100 Level 1 . | . . . . . . . Level 2 . | . . . . . . . Level 3 . | . . . . . . . Level 4 . | . . . . . . . Level 5 . | . . . . . . . High Security . | . . . . . . . Max Security . | . . . . . . . Peak Influence 160 | 5 90 . . 160 32 115 Initial 32 | . . . . . 32 . Average 52 | 1 31 . . 61 8 17 Influence Increases 985 | 5 126 70 . 649 . 135 Destroy 0b10 Robot/C 600 | . 100 60 . 340 . 100 Destroy 0b10 Robot/NC 35 | 5 . . . 30 . . Destroy Leader 132 | . 20 10 . 82 . 20 Allied During Kill 14 | . . . . . . 14 Successful Hack 18 | . 6 . . 12 . . Disable Machine 105 | . . . . 105 . . Destroy Structure 66 | . . . . 65 . 1 Lose Combat Pursuer 15 | . . . . 15 . . Influence Decreases 781 | 5 50 109 . 555 32 30 Time Decay 560 | 5 50 90 . 395 10 10 Lost Part 201 | . . 19 . 160 22 . Lost Ally 20 | . . . . . . 20 Squads Dispatched 10 | . 2 . . 6 . 2 Investigation 4 | . 1 . . 2 . 1 Extermination 3 | . . . . 3 . . Reinforcement 3 | . 1 . . 1 . 1 Assault . | . . . . . . . Garrison . | . . . . . . . Intercept . | . . . . . . . Searches Triggered . | . . . . . . . Construction Impeded . | . . . . . . . Haulers Reinforced . | . . . . . . . Active Scanning Responses . | . . . . . . . Cargo Convoy Interrupts . | . . . . . . . Stealth | -11 -10 -10 -8 -6 -6 -6 --------- Run | Yrd Mat Sub Scr Fac Was Fac Distress Signals 2 | . 1 . . . . 1 Communications Jammed . | . . . . . . . Distress Signals . | . . . . . . . Times Spotted 51 | . 9 4 . 20 6 12 Peak Tracking Total 10 | . 3 3 . 4 6 10 Tactical Retreats 1 | . . . . 1 . . Traps | -11 -10 -10 -8 -6 -6 -6 ------- Run | Yrd Mat Sub Scr Fac Was Fac Traps Triggered 5 | . . 4 . 1 . . Indirectly . | . . . . . . . Trap Hack Attempts . | . . . . . . . Triggered . | . . . . . . . Disarmed . | . . . . . . . Reprogrammed . | . . . . . . . Reused . | . . . . . . . Traps Extracted . | . . . . . . . Installed . | . . . . . . . Triggered . | . . . . . . . Machines | -11 -10 -10 -8 -6 -6 -6 ---------- Run | Yrd Mat Sub Scr Fac Was Fac Machines Disabled 7 | . . . . 7 . . Max in Single Turn 5 | . . . . 5 . . Machines Repaired . | . . . . . . . Machines Dismantled . | . . . . . . . Machines Sabotaged . | . . . . . . . Overloaded Fab Kills . | . . . . . . . Hacking | -11 -10 -10 -8 -6 -6 -6 --------- Run | Yrd Mat Sub Scr Fac Was Fac Machines Accessed 9 | . 3 1 1 3 . 1 Terminals 3 | . 2 . . 1 . . Fabricators 1 | . . . . 1 . . Repair Stations 1 | . . . . 1 . . Recycling Units 2 | . 1 . . . . 1 Scanalyzers . | . . . . . . . Garrison Access . | . . . . . . . Total Hacks 32 | . 14 4 4 9 . 1 Successful 14 | . 2 4 4 3 . 1 Failed 18 | . 12 . . 6 . . Catastrophic 2 | . 2 . . . . . Database Lockouts . | . . . . . . . Manual 13 | . 10 . . 2 . 1 Terminals 11 | . 10 . . 1 . . Fabricators 4 | . . . . 4 . . Repair Stations 4 | . . . . 4 . . Recycling Units 5 | . 4 . . . . 1 Scanalyzers . | . . . . . . . Garrison Access . | . . . . . . . Terminal Hacks 9 | . 1 4 4 . . . Record 8 | . . 4 4 . . . Robot Analysis 1 | . 1 . . . . . Fabricator Hacks 1 | . . . . 1 . . Network Status 1 | . . . . 1 . . Repair Station Hacks 2 | . . . . 2 . . Scan Component 1 | . . . . 1 . . Repair 1 | . . . . 1 . . Recycling Unit Hacks 1 | . 1 . . . . . Report Inventory 1 | . 1 . . . . . Scanalyzer . | . . . . . . . Garrison Access Hacks . | . . . . . . . Unauthorized Hacks 1 | . . . . . . 1 Terminals . | . . . . . . . Fabricators . | . . . . . . . Repair Stations 1 | . . . . . . 1 Recycling Units . | . . . . . . . Scrapoids 1 | . . . . . . 1 Scanalyzers . | . . . . . . . Garrison Access . | . . . . . . . Data Cores Recovered . | . . . . . . . Used . | . . . . . . . Hacking Detections 6 | . 3 . . 3 . . Full Trace Events 4 | . 2 . . 2 . . Feedback Events . | . . . . . . . Feedback Blocked . | . . . . . . . Robot Schematics Acquired . | . . . . . . . Robots Built . | . . . . . . . Authchips . | . . . . . . . Time . | . . . . . . . Total Robot Build Rating . | . . . . . . . Part Schematics Acquired . | . . . . . . . Parts Built . | . . . . . . . Authchips . | . . . . . . . Time . | . . . . . . . Total Part Build Rating . | . . . . . . . Parts Repaired 1 | . . . . 1 . . Time 13 | . . . . 13 . . Parts Recycled . | . . . . . . . Recycled Matter . | . . . . . . . Retrieved Matter . | . . . . . . . Retrieved Components . | . . . . . . . Parts Scanalyzed . | . . . . . . . Part Schematics Acquired . | . . . . . . . Parts Damaged . | . . . . . . . Bothacking | -11 -10 -10 -8 -6 -6 -6 ------------ Run | Yrd Mat Sub Scr Fac Was Fac Used RIF Installer . | . . . . . . . Robots Hacked 1 | . . . 1 . . . Non-combat . | . . . . . . . Combat 1 | . . . 1 . . . Robot Hacks Applied 1 | . . . 1 . . . parse_system 1 | . . . 1 . . . Relay Couplers Released . | . . . . . . . Fabnet Peak Effective % . | . . . . . . . Robots Rewired . | . . . . . . . Allies Hacked . | . . . . . . . Hacks Repelled . | . . . . . . . Allies | -11 -10 -10 -8 -6 -6 -6 -------- Run | Yrd Mat Sub Scr Fac Was Fac Total Allies 5 | . . . . . . 5 Largest Group 5 | . . . . . . 5 Highest-Rated Group 140 | . . . . . . 140 Highest-Rated Ally 28 | . . . . . . 28 Total Orders . | . . . . . . . Ally Attacks 43 | . . . . . . 43 Total Damage 650 | . . . . . . 650 Kills 5 | . . . . . . 5 Allies Corrupted . | . . . . . . . Allies Melted . | . . . . . . . Intel | -11 -10 -10 -8 -6 -6 -6 ------- Run | Yrd Mat Sub Scr Fac Was Fac Active Infowar (turns) 467 | 15 160 229 63 . . . Optics 109 | . . 46 63 . . . Seismic 358 | 15 160 183 . . . . Robot Analysis Total 1 | . 1 . . . . . Derelict Logs Recovered 1 | . . . 1 . . . Drone Launches . | . . . . . . . Drone Recoveries . | . . . . . . . Exploration | -11 -10 -10 -8 -6 -6 -6 ------------- Run | Yrd Mat Sub Scr Fac Was Fac Turns Passed 5752 | 45 160 238 3736 1405 105 63 Spaces Moved 2806 | 36 121 175 1822 479 88 85 Core 155 | 6 . 1 . . 82 66 Treads 1432 | . . 24 1408 . . . Legs . | . . . . . . . Wheels 1219 | 30 121 150 414 479 6 19 Hover . | . . . . . . . Flight . | . . . . . . . Fastest Speed 50 | 50 80 110 160 220 50 50 Average Speed 185 | 75 91 119 202 220 61 61 Slowest Speed 560 | 80 110 500 560 225 220 100 Overloaded Moves . | . . . . . . . Propulsion Burnouts . | . . . . . . . Robots Hopped . | . . . . . . . Cave-ins Triggered . | . . . . . . . Exploration Rate (%) 32 | 3 27 16 87 11 76 4 Regions Visited 6 Branch Regions 2 Pre-discovered Areas 2 | . . . 2 . . . Known Exits Taken . | . . . . . . . Unknown Exits Taken 4 | 1 1 1 1 . . . Scrap Searched 5 | . . . 5 . . . Spaces Dug . | . . . . . . . Terrain Destroyed 91 | . . . . 91 . . Melee . | . . . . . . . Projectile . | . . . . . . . AOE 91 | . . . . 91 . . Terrain Rammed . | . . . . . . . Walls Destroyed . | . . . . . . . Machines Disabled . | . . . . . . . Actions | -11 -10 -10 -8 -6 -6 -6 --------- Run | Yrd Mat Sub Scr Fac Was Fac Total 3123 | 48 149 194 1862 661 114 95 Wait 54 | . 5 10 . 30 1 8 Move 2801 | 35 120 174 1821 479 87 85 Hop . | . . . . . . . Pick Up 85 | 5 4 4 28 39 5 . Fast Attach 19 | 6 2 . 2 6 1 2 Attach 23 | 1 1 3 1 14 3 . Detach 4 | . 1 . . 3 . . Swap 7 | . 1 . 2 4 . . Drop 14 | . 4 . 7 2 1 . Fire 111 | 1 11 3 . 84 12 . Melee 5 | . . . 1 . 4 . Ram . | . . . . . . . Kick . | . . . . . . . Crush . | . . . . . . . Escape Stasis . | . . . . . . . Rewire . | . . . . . . . Trap . | . . . . . . . Miscellaneous . | . . . . . . . Route ------- -11/Scrapyard -10/Materials -10/Subcaves (discovered 4 exits: Mat x2 / Rec / *Scr) -8/Scraptown (discovered 2 exits: *Fac x2) -6/Factory -6/Waste -6/Factory History --------- Turn | Location | Event 3 | -11/Scrapyard | Discovered new exit (range 15) 46 | -11/Scrapyard | Entered Materials 47 | -10/Materials | Met a group of wandering Federalists 160 | -10/Materials | Lost 4 allies 202 | -10/Materials | Discovered new exit (range 5) 206 | -10/Materials | Entered Subcaves 206 | -10/Subcaves | Accompanied by 1 ally 207 | -10/Subcaves | Continued accompanying wandering Federalists (1) 207 | -10/Subcaves | Approached by a straggling Scientist 229 | -10/Subcaves | Shifting Twisted Machinery released Battle Cannon 265 | -10/Subcaves | A swath of the cavern ceiling suddenly collapsed 311 | -10/Subcaves | Build established: Mutant 350 | -10/Subcaves | Shifting Twisted Machinery released Sub. Optics 360 | -10/Subcaves | Visited Clippyterm 364 | -10/Subcaves | Identified exit to Materials 364 | -10/Subcaves | Identified exit to Recycling 364 | -10/Subcaves | Learned Factory trap positions 374 | -10/Subcaves | Shifting Twisted Machinery released Barrage Gun 420 | -10/Subcaves | Lost 4 parts (1p1n1u1w) 424 | -10/Subcaves | Wandering Federalist uncovered a shortcut to Scraptown 444 | -10/Subcaves | Entered Scraptown 513 | -8/Scraptown | Visited Symbiants 563 | -8/Scraptown | Visited Assassins FH 604 | -8/Scraptown | Visited UFD Registry 604 | -8/Scraptown | Registered with UFD as "Longflow" 606 | -8/Scraptown | Heard Great Nut preacher, LISTEN AND RECITE! 659 | -8/Scraptown | Visited Botcube Research 689 | -8/Scraptown | Visited Junk Repository 729 | -8/Scraptown | Visited Research Penetration Think Tank 804 | -8/Scraptown | Visited DA-N13 Charitable Foundation 819 | -8/Scraptown | Found DCF Scrap (31 items) 849 | -8/Scraptown | Visited LU-1G1's Boring Crew 1137 | -8/Scraptown | Visited Curators Association 1187 | -8/Scraptown | Visited Chapter 10 1209 | -8/Scraptown | Visited Derelict Rescue Squad 1219 | -8/Scraptown | Found DRS Beacon 1297 | -8/Scraptown | Visited Cyclists 1316 | -8/Scraptown | Entered Cyclist Reading Room 1322 | -8/Scraptown | Learned location of Zion (-6) 1377 | -8/Scraptown | Visited CR-KLE's Repair Center 1418 | -8/Scraptown | Visited SPCMW 1466 | -8/Scraptown | Scanned Subdweller tech in exchange for log data 1492 | -8/Scraptown | Discovered new exit (range 11) 1570 | -8/Scraptown | Guru changed UFD alias to "Cryoflow" 2788 | -8/Scraptown | Build established: Hauler-Mutant 3115 | -8/Scraptown | Visited Scrap Suit Storage 3137 | -8/Scraptown | Found Scrap Suit 3144 | -8/Scraptown | Found Scrap Suit 3543 | -8/Scraptown | Found Botcube 3729 | -8/Scraptown | CR-KLE repaired 4 parts 4171 | -8/Scraptown | Discovered new exit (range 3) 4180 | -8/Scraptown | Entered Factory 4180 | -6/Factory | Evolved 8 slots: Power x1, Propulsion x1, Utility x6 4181 | -6/Factory | Loaded intel: 61 trap records 4940 | -6/Factory | Lost 3 parts (1u2w) 5350 | -6/Factory | Repaired Humpback 5368 | -6/Factory | Lost 6 parts (1p2n1u1w) 5476 | -6/Factory | Lost 4 parts (1n2u1w) 5585 | -6/Factory | Sucked down chute 5585 | -6/Factory | Entered Waste 5597 | -6/Waste | Spotted C-40 Crusher 5600 | -6/Waste | EMP discharged 5600 | -6/Waste | System corruption reached 10% 5614 | -6/Waste | Spotted C-40 Crusher 5617 | -6/Waste | Crushed by Compactor (1 part destroyed) 5620 | -6/Waste | Crushed by Compactor (0 parts destroyed, 1 dropped) 5623 | -6/Waste | Crushed by Compactor (0 parts destroyed, 1 dropped) 5629 | -6/Waste | Crushed by Compactor (1 part destroyed) 5632 | -6/Waste | Crushed by Compactor (1 part destroyed) 5633 | -6/Waste | Crushed by Compactor (1 part destroyed) 5637 | -6/Waste | Core integrity fell below 50% 5639 | -6/Waste | Crushed by Compactor (1 part destroyed) 5650 | -6/Waste | Spotted C-40 Crusher 5651 | -6/Waste | Spotted C-40 Crusher 5653 | -6/Waste | Core integrity fell below 20% 5654 | -6/Waste | Spotted C-40 Crusher 5659 | -6/Waste | Crushed by Compactor (1 part destroyed) 5667 | -6/Waste | Spotted C-40 Crusher 5684 | -6/Waste | Discovered new exit (range 13) 5690 | -6/Waste | Lost 11 parts (2p1n4u4w) 5690 | -6/Waste | Entered Factory 5709 | -6/Factory | Scrapoid reinforcements arrived 5753 | -6/Factory | Destroyed by G-50 Soldier with Heavy Laser Last Messages --------------- UFD!ETA<10> UFD!SANITIZING UFD!... 05699_ ALERT: Suspicious activity at Recycling Unit F005. Dispatching Investigation squad. 05709_ Scrapoid reinforcements burst from the Recycling Unit. 05728_ ALERT: All DSF locations entering lockdown mode. 05728_ ALERT: Hostiles spotted, dispatching reinforcements to Terminal F007. 05732_ Acquired Chainsword. 05734_ Acquired Imp. Medium Armor Plating. 05741_ G-50 Soldier suffers critical hit (Destroy). 05741_ G-50 Soldier destroyed. 05742_ System corrupted: Heat flow error (+211). 05742_ G-50 Soldier suffers critical hit (Burn). 05743_ G-50 Soldier destroyed. 05746_ L-41 Fighter destroyed. 05747_ G-50 Soldier suffers critical hit (Burn). 05747_ Critical hit (Burn: +37). 05748_ G-50 Soldier critical meltdown. Map ----- +----------------------------------------------------+ | ????????????????????????# #??????????????????? | | ????????????????????????# #??????????????????? | | ????????????????????????# #??????????????????? | | ????????????????????????# ######?????????????? | | ????????????????????????# ????????????? | | ????????????????????????# ?????????????? | | ????????????????????????# ???????????????? | | ???????????############## ????????????????? | | ??????????## # ?????????????????? | | ??????????# !/ # ##?????????????????? | | ?????????????"""" ! # T#?????????????????? | | ?????????????"""" ! # g #?????????????????? | | ?????????????"""" # #??????????????????? | | ?????????????"""" + #?????##???????????? | | ???????????# # #??? ??????????? | | ???????????# ! # #??"" """??????????? | | ???????????# # #??"" """ ""???????? | | ???????????# # #?""" """ """ ????? | | ???????????# """ """ # #? ?????? | | ???????????# """T""" # %# ""???????? | | ???????????############## *# "????????? | | ????????????????????????# !![g ""T""????????????? | | ????????????????????????# *%=# """""????????????? | | ????????????????????????# **%%# ??????????? | | ??????????????########### =!=###########????????? | | ??????????????# ;@ =!/ ??????? | | ??????????????# # ??????? | | ??????????????# # s ??????? | | ??????????????# + ??????? | | ??????????????# # s ??????? | | ??????????????# # ! ??????? | | ??????????????# ?#*%[ ?????? | | ??????????????# ?# = ?????? | | ??????????????########??#!s[ ?????? | | ????????????????????????# = ###?????????? | | ????????????????????????# #???????????? | | ????????????????????????# o #???????????? | | ????????????????????????# ###+####???????????? | | ??????????????????????### #??????????????????? | | ??????????????????????# #??????????????????? | | ??????????????????????# #??????????????????? | | ??????????????????????# #??????????????????? | | ??????????????????????# #??????????????????? | | ??????????????????????# #??????????????????? | | ????????????????????######/#######???????????????? | | ????????????????????# #???????????????? | | ????????????????????# """" """" #???????????????? | | ????????????????????# """" """" #???????????????? | | ????????????????????# """" """" #???????????????? | | ????????????????????# """" """" #???????????????? | +----------------------------------------------------+ Best States ------------- Heat Dissipation 70 Energy Generation 29 Energy Capacity 500 Matter Stores 300 Matter Capacity 300 Sight Range 21 Terrain Scan Density 10 Armor Coverage 225 Evasion (%) 50 Targeting Accuracy 8 Core Analysis 6 Recoil Reduction 2 Item Schematics ----------------- None Robot Schematics ------------------ None Fabricated ------------ Nothing Repaired ---------- Humpback | 2% | -6/Factory Alien Tech Used ----------------- None Achievements -------------- None Challenges ------------ None Game ------ Seed ChromaticLinearWarhead Manual? 0 Play Time 00:34:15 Cumulative 547.5 hours Start 2024.11.14 @ 01:30:36 End 2024.11.14 @ 02:04:14 Sessions 1 Manual Loads 0 Difficulty Rogue Special Mode None Game No. 206 Rogue 201 Adventurer 4 Explorer 1 Win Type - Total 7 Types 4/1/0/1/0/1/0/0/0 Lore% 89 Gallery% 92 Achievement% 87 Wizard Run 0 Options --------- Layout 0 ASCII 0 Keyboard 0 Movement Numpad Keybinds 0 Fullscreen 2 Font 18/CogNarrow Map View 76x50 Zoom Use 0% Tactical HUD 1 Map Filters NONE Filters NONE Steam 1 RUN: 31a638d6-3562-4fe8-8fc2-371ed5a8c2c9